bitfinex/quotes_SOLUSD_20220109
["timestamp","ask_amount","ask_price","bid_price","bid_amount"]
[1641725007365,10.7355,139.82,139.77,10.7353]
[1641725007767,9.88969013,139.85,139.77,10.7353]
[1641725008164,10.7356,139.82,139.77,10.7353]
[1641725008366,10.7356,139.82,139.76,34.91669033]
[1641725008566,1.788,139.81,139.76,34.91669033]
[1641725009469,9.89342156,139.84,139.76,34.91669033]
[1641725009869,10.7368,139.81,139.76,24.18059033]
[1641725010772,10.7368,139.81,139.74,47.67035004]
[1641725010974,35.79113402,139.81,139.74,47.67035004]
[1641725011972,3.0,139.8,139.74,47.67035004]
[1641725012174,10.7389,139.78,139.74,47.67035004]
[1641725012373,3.0,139.8,139.74,47.67035004]
[1641725012573,25.05433402,139.81,139.74,47.67035004]
[1641725012974,53.12544472,139.96,139.74,47.67035004]
[1641725012975,28.35022205,139.93,139.82,77.0]
[1641725013176,28.35022205,139.93,139.87,10.7255]
[1641725013376,8.08799594,139.95,139.88,1.786]
[1641725013576,8.08799594,139.95,139.88,49.3185]
[1641725013777,9.87143206,139.98,139.88,49.3185]
[1641725013977,23.01374575,139.97,139.89,22.79151088]
[1641725014179,23.01374575,139.97,139.88,49.3185]
[1641725014380,1.786,139.96,139.84,1.786]
[1641725014578,10.7306,139.94,139.84,24.3814]
[1641725014777,1.786,139.93,139.84,22.5954]
[1641725014977,2.01701258,139.9,139.85,1.786]
[1641725015177,25.37895389,139.89,139.85,1.786]
[1641725015378,2.01744052,139.87,139.84,22.5954]
[1641725015582,2.01744052,139.87,139.85,0.93000001]
[1641725017280,5.13439993,139.86,139.83,1.786]
[1641725017487,1.786,139.85,139.83,1.786]
[1641725017884,1.786,139.86,139.83,1.786]
[1641725018084,37.21426314,139.85,139.83,1.786]
[1641725018586,28.21940614,139.85,139.83,1.786]
[1641725018784,1.787,139.9,139.84,77.0]
[1641725018984,1.787,139.9,139.84,32.0]
[1641725019785,4.0,139.81,139.64,1.89145802]
[1641725019985,4.0,139.81,139.71,12.5268]
[1641725019986,1.789,139.8,139.71,12.5268]
[1641725020185,1.789,139.8,139.71,10.7398]
[1641725020386,2.01617277,139.77,139.71,10.7398]
[1641725020788,2.01617277,139.77,139.72,30.41368714]
[1641725021988,2.01646827,139.76,139.72,30.41368714]
[1641725024214,1.789,139.8,139.74,10.734]
[1641725024422,4.0,139.81,139.74,16.379]
[1641725024614,4.0,139.81,139.77,35.7646]
[1641725024814,1.788,139.9,139.79,58.0]
[1641725025220,1.788,139.9,139.83,10.7308]
[1641725025415,1.788,139.9,139.79,58.0]
[1641725025614,26.33835747,139.89,139.8,24.15511303]
[1641725025816,1.786,139.88,139.8,59.92221303]
[1641725026215,1.786,139.88,139.8,24.15511303]
[1641725026416,1.786,139.88,139.81,10.7324]
[1641725026818,4.03033692,139.87,139.81,10.7324]
[1641725027417,1.786,139.88,139.81,10.7324]
[1641725027715,1.786,139.91,139.81,10.7324]
[1641725028115,10.7315,139.88,139.81,10.7324]
[1641725028315,1.786,139.87,139.81,10.7324]
[1641725028515,5.81553436,139.87,139.81,10.7324]
[1641725028715,1.786,139.87,139.81,10.7324]
[1641725029115,1.786,139.89,139.81,10.7324]
[1641725029316,10.7328,139.87,139.81,10.7324]
[1641725029519,4.02927073,139.88,139.78,51.5058]
[1641725029815,3.43945313,139.87,139.77,1.786]
[1641725030017,3.43945313,139.87,139.73,1.788]
[1641725030217,11.43345313,139.87,139.73,3.0]
[1641725030418,11.43345313,139.87,139.74,24.64063033]
[1641725030419,34.81528654,139.86,139.74,24.64063033]
[1641725030627,10.7378,139.8,139.74,37.16643033]
[1641725030824,0.0001,139.8,139.75,128.462]
[1641725031019,0.0001,139.8,139.76,1.788]
[1641725033124,0.0001,139.8,139.77,10.7352]
[1641725033326,0.0001,139.8,139.78,0.93000001]
[1641725034126,0.0001,139.8,139.78,11.66470001]
[1641725034326,0.0001,139.8,139.78,0.93000001]
[1641725035127,2.10229996,139.8,139.78,1e-08]
[1641725035530,2.10229996,139.8,139.76,22.9925]
[1641725036228,25.80399696,139.8,139.76,33.7288]
[1641725036429,25.80399696,139.8,139.74,79.459]
[1641725036628,2.10229996,139.8,139.74,1.788]
[1641725037831,12.83949996,139.8,139.75,10.737]
[1641725038032,12.83949996,139.8,139.74,1.788]
[1641725038231,14.62749996,139.8,139.74,1.788]
[1641725038833,3.89029996,139.8,139.74,12.5254]
[1641725039237,2.10229996,139.8,139.74,12.5254]
[1641725041439,14.62729996,139.8,139.74,12.5254]
[1641725041636,14.62729996,139.8,139.73,1.788]
[1641725041837,22.92029996,139.8,139.69,1.788]
[1641725042238,4.03635045,139.79,139.69,1.788]
[1641725042435,1.789,139.78,139.69,1.788]
[1641725042634,10.7424,139.74,139.69,1.788]
[1641725046343,10.7424,139.74,139.69,30.94151621]
[1641725046643,10.7424,139.74,139.69,1.788]
[1641725047543,38.74436276,139.74,139.69,1.788]
[1641725048044,10.7424,139.74,139.68,49.35872601]
[1641725049170,36.5335317,139.74,139.68,49.35872601]
[1641725054580,10.7424,139.74,139.68,49.35872601]
[1641725055680,38.71661668,139.74,139.68,49.35872601]
[1641725061188,40.50561668,139.74,139.68,49.35872601]
[1641725064891,12.5314,139.74,139.68,49.35872601]
[1641725065796,10.7424,139.74,139.68,51.14772601]
[1641725066594,10.7424,139.74,139.68,80.31927363]
[1641725068025,1.789,139.76,139.69,0.25]
[1641725068224,7.76278904,139.79,139.72,10.7386]
[1641725068427,5.97378904,139.79,139.73,0.25]
[1641725068624,6.02621102,139.8,139.73,39.0338]
[1641725068825,6.02621102,139.8,139.73,54.75975428]
[1641725069024,0.0001,139.8,139.73,54.75975428]
[1641725069225,0.0001,139.8,139.73,25.9254]
[1641725069427,0.0001,139.8,139.76,10.7352]
[1641725070529,0.0001,139.8,139.76,12.5232]
[1641725072131,0.0001,139.8,139.78,10.7334]
[1641725072336,0.0001,139.8,139.76,1.788]
[1641725072734,0.0001,139.8,139.77,0.25]
[1641725072933,35.7844,139.86,139.78,1.788]
[1641725073133,1.788,139.85,139.79,77.0]
[1641725073536,1.788,139.89,139.79,77.0]
[1641725073735,10.733,139.85,139.8,26.20455597]
[1641725073937,10.733,139.85,139.8,27.99055597]
[1641725074834,10.733,139.85,139.8,38.72355597]
[1641725076834,10.733,139.85,139.8,27.99055597]
[1641725078333,10.7324,139.86,139.8,38.72395597]
[1641725080036,10.7324,139.86,139.8,1.786]
[1641725080237,1.786,139.85,139.78,12.5205]
[1641725080441,1.786,139.85,139.78,10.7345]
[1641725080637,1.788,139.86,139.78,12.5225]
[1641725080835,1.788,139.87,139.78,12.5225]
[1641725081037,1.788,139.87,139.79,28.68086137]
[1641725081236,28.83665798,139.88,139.8,1.786]
[1641725081442,10.7318,139.87,139.82,10.7315]
[1641725081635,1.786,139.92,139.82,10.7315]
[1641725082437,29.41947631,139.92,139.83,25.50098179]
[1641725082636,10.7308,139.88,139.83,36.23168179]
[1641725082837,10.7308,139.88,139.83,10.7307]
[1641725083037,29.41947631,139.92,139.83,10.7307]
[1641725083940,12.5123,139.94,139.88,10.7263]
[1641725084139,12.5123,139.94,139.84,47.25284909]
[1641725084340,1.786,139.94,139.85,1.786]
[1641725084540,1.786,139.94,139.85,2.036]
[1641725084739,1.786,139.94,139.88,35.7371]
[1641725084940,1.786,139.96,139.89,26.46730993]
[1641725085141,1.786,139.96,139.92,10.7215]
[1641725085341,10.692,140.0,139.92,18.4155]
[1641725085541,208.61085165,140.04,139.93,2.036]
[1641725085741,197.88445165,140.04,139.93,80.3488]
[1641725085941,4.02461003,139.99,139.94,29.65203954]
[1641725086166,10.8182,140.06,139.98,107.75665105]
[1641725086340,11.06790397,140.13,139.98,120.25495105]
[1641725086744,11.06790397,140.13,139.99,3.0]
[1641725086942,11.06790397,140.13,140.0,1.784]
[1641725087141,192.54963632,140.12,140.02,35.7019]
[1641725087443,1.784,140.11,140.06,10.7099]
[1641725087641,1.784,140.11,140.03,29.57307148]
[1641725087841,1.784,140.12,140.03,29.57307148]
[1641725088043,12.634942,140.12,140.03,29.57307148]
[1641725088242,1.784,140.12,140.03,29.57307148]
[1641725088443,3.492506,140.11,140.03,40.28477148]
[1641725088643,1.784,140.1,140.03,40.28477148]
[1641725088843,1.784,140.12,140.03,40.28477148]
[1641725089045,1.784,140.12,140.03,29.57307148]
[1641725089545,12.4973,140.12,140.03,29.57307148]
[1641725089747,31.82025524,140.1,140.03,29.57307148]
[1641725090044,22.202263,140.09,140.0,1.784]
[1641725090245,22.202263,140.09,139.88,76.3742]
[1641725090246,11.43625,140.08,139.95,48.0302]
[1641725090449,1.784,140.07,139.95,48.0302]
[1641725090745,1.784,140.07,139.95,46.2462]
[1641725090945,23.21861653,140.06,139.96,22.91846968]
[1641725091146,1.784,140.05,139.96,22.91846968]
[1641725091648,12.5023,140.05,139.96,22.91846968]
[1641725091844,6.43664082,140.11,139.96,22.91846968]
[1641725091845,317.53052869,140.18,139.96,76.03392281]
[1641725092044,317.53052869,140.18,139.97,0.25]
[1641725092245,1.65345313,140.15,139.98,1.784]
[1641725092448,1.65345313,140.15,139.99,0.25]
[1641725092646,10.7145,140.1,140.0,10.7141]
[1641725092846,35.59719704,140.1,139.99,125.49374652]
[1641725093046,35.59719704,140.1,139.99,48.42334652]
[1641725094249,35.59719704,140.1,140.0,1.784]
[1641725095249,37.25065017,140.1,140.0,1.784]
[1641725095450,37.25065017,140.1,139.99,48.42334652]
[1641725095850,35.59719704,140.1,139.99,48.42334652]
[1641725096151,37.25065017,140.1,139.99,48.42334652]
[1641725096551,46.196872,140.09,139.98,1.784]
[1641725096753,10.7209,140.04,139.95,23.5931]
[1641725097155,12.37435313,140.04,139.92,23.3873]
[1641725097555,41.9262086,140.04,139.93,22.45467023]
[1641725099054,41.9262086,140.04,139.92,23.3873]
[1641725100055,41.9262086,140.04,139.93,23.42561666]
[1641725100256,40.27275547,140.04,139.93,23.42561666]
[1641725101056,40.27275547,140.04,139.92,23.3873]
[1641725101258,1.65345313,140.03,139.89,25.1009]
[1641725101556,1.65345313,140.03,139.89,23.3169]
[1641725101557,10.7287,139.96,139.89,23.3169]
[1641725102158,10.7287,139.96,139.89,47.54755345]
[1641725102460,10.7287,139.96,139.88,1.786]
[1641725103263,10.7287,139.96,139.88,30.0131509]
[1641725103664,10.7293,139.92,139.88,28.2271509]
[1641725103863,59.94639064,139.95,139.88,28.2271509]
[1641725103864,35.7642,139.95,139.88,28.2271509]
[1641725104163,35.7642,139.95,139.85,1.786]
[1641725104965,61.61598744,139.94,139.85,25.23920615]
[1641725105166,25.84958744,139.94,139.85,1.786]
[1641725105365,35.74904057,139.94,139.84,47.7119]
[1641725105567,11.465274,139.93,139.84,47.7119]
[1641725105766,10.7325,139.89,139.84,47.7119]
[1641725108269,1.65345313,139.95,139.84,47.7119]
[1641725108469,10.6312,140.01,139.84,47.7119]
[1641725108692,1.65345313,140.0,139.84,47.7119]
[1641725108893,35.7612,139.96,139.84,58.4399]
[1641725109295,35.7612,139.96,139.85,27.89920587]
[1641725109296,10.7273,139.94,139.85,27.89920587]
[1641725109496,27.97077586,139.95,139.85,27.89920587]
[1641725109695,27.97077586,139.95,139.86,1.786]
[1641725110095,27.97077586,139.95,139.88,26.80835661]
[1641725110494,38.69687586,139.95,139.88,26.80835661]
[1641725111793,10.7248,139.97,139.88,26.80835661]
[1641725111994,10.7248,139.97,139.89,12.7602]
[1641725112395,1.65345313,139.99,139.82,228.3997]
[1641725112594,1.65345313,139.96,139.82,75.3631]
[1641725112795,1.65345313,139.96,139.83,0.25]
[1641725112996,11.64568175,139.99,139.88,10.7239]
[1641725113196,11.457101,139.98,139.84,1.786]
[1641725113496,28.38355028,139.98,139.85,26.31740557]
[1641725113696,28.38355028,139.98,139.86,1.786]
[1641725114096,39.10765028,139.98,139.89,25.73259294]
[1641725115800,10.7241,139.98,139.89,25.73259294]
[1641725116400,10.7241,139.98,139.9,3.0]
[1641725116602,10.7241,139.98,139.9,4.786]
[1641725116802,10.7241,139.98,139.9,1.786]
[1641725117202,10.7241,139.98,139.87,1.786]
[1641725117604,15.83358,139.97,139.87,1.786]
[1641725117802,10.7308,139.92,139.87,1.786]
[1641725118810,10.7308,139.92,139.83,77.6431]
[1641725119937,10.7308,139.92,139.83,75.8571]
[1641725120311,10.7308,139.92,139.82,105.40276105]
[1641725121710,10.7308,139.92,139.83,1.786]
[1641725128344,12.38425313,139.92,139.82,73.5771]
[1641725129346,21.754771,139.91,139.81,0.49552601]
[1641725129546,10.7391,139.86,139.76,1.786]
[1641725129748,18.0411,139.86,139.73,1.788]
[1641725130152,26.09002114,139.85,139.73,1.788]
[1641725130547,1.65345313,139.84,139.73,1.788]
[1641725130749,10.739,139.78,139.72,117.3470248]
[1641725131148,10.739,139.78,139.72,94.7]
[1641725132049,29.52151454,139.77,139.72,94.7]
[1641725132449,10.745,139.75,139.72,94.7]
[1641725132751,41.88359993,139.74,139.72,23.0587]
[1641725133350,24.3984743,139.73,139.69,1.0154349]
[1641725133752,35.1442743,139.73,139.69,1.0154349]
[1641725134150,32.0,139.72,139.64,1.789]
[1641725134351,35.8326,139.69,139.68,94.7]
[1641725134551,6.06439993,139.69,139.68,94.7]
[1641725134951,10.7461,139.71,139.68,94.7]
[1641725135852,33.1555101,139.7,139.68,94.7]
[1641725136051,6.06439993,139.7,139.68,94.7]
[1641725136253,10.7458,139.69,139.68,94.7]
[1641725136653,35.8151,139.74,139.68,94.7]
[1641725137053,5.77888051,139.83,139.68,94.7]
[1641725137254,28.53033663,139.82,139.68,94.7]
[1641725137654,35.8096,139.76,139.68,94.7]
[1641725138057,30.18378976,139.82,139.68,94.7]
[1641725138257,10.7454,139.76,139.68,94.7]
[1641725138457,23.53346276,139.75,139.68,94.7]
[1641725138856,35.8187,139.73,139.68,94.7]
[1641725139458,22.48478701,139.72,139.68,94.7]
[1641725139861,13.29913488,139.82,139.68,94.7]
[1641725140258,1.65345313,139.82,139.68,94.7]
[1641725140461,10.7441,139.75,139.68,94.7]
[1641725140663,10.7441,139.75,139.68,96.489]
[1641725140959,35.46443271,139.75,139.68,94.7]
[1641725145268,57.209197,139.74,139.68,94.7]
[1641725145468,10.7498,139.71,139.68,94.7]
[1641725145870,6.06439993,139.7,139.62,94.7]
[1641725146499,10.7511,139.66,139.62,94.7]
[1641725146700,31.59119305,139.69,139.62,96.49]
[1641725147300,1.93031413,139.76,139.62,96.49]
[1641725147500,1.93031413,139.76,139.62,169.9969]
[1641725147900,1.93231008,139.77,139.62,169.9969]
[1641725148102,1.93231008,139.77,139.63,119.7399]
[1641725148303,24.41337747,139.76,139.64,24.60497459]
[1641725148600,1.65345313,139.75,139.64,24.60497459]
[1641725148802,10.7496,139.7,139.64,24.60497459]
[1641725150107,10.7496,139.7,139.63,119.7399]
[1641725150302,10.7496,139.7,139.63,47.6358]
[1641725151405,10.7496,139.7,139.62,94.7]
[1641725153608,10.7496,139.7,139.61,119.14227073]
[1641725154408,10.7496,139.7,139.61,94.7]
[1641725159013,1.96538264,139.69,139.61,94.7]
[1641725159214,10.7515,139.65,139.61,94.7]
[1641725159415,35.47302421,139.65,139.61,94.7]
[1641725164718,35.47302421,139.65,139.59,46.3167]
[1641725169723,24.72152421,139.65,139.59,46.3867]
[1641725170527,24.72152421,139.65,139.6,0.25]
[1641725170725,35.47072421,139.65,139.6,0.25]
[1641725171126,35.47072421,139.65,139.59,46.3867]
[1641725171332,35.47072421,139.65,139.59,46.3167]
[1641725173226,41.24072421,139.65,139.59,46.3167]
[1641725173827,41.24072421,139.65,139.58,1.789]
[1641725174028,41.24072421,139.65,139.57,94.7]
[1641725174227,1.97616007,139.64,139.57,94.7]
[1641725174629,10.754,139.61,139.57,94.7]
[1641725177128,10.7516,139.62,139.57,94.7]
[1641725177328,1.96944197,139.64,139.57,94.7]
[1641725177730,35.8466,139.63,139.57,94.7]
[1641725177928,26.69732467,139.65,139.57,94.7]
[1641725178128,10.7527,139.61,139.57,94.7]
[1641725179627,26.69447594,139.65,139.53,1.79]
[1641725179628,10.7589,139.57,139.53,1.79]
[1641725179827,10.7589,139.57,139.46,1.791]
[1641725179828,22.89309658,139.56,139.46,1.791]
[1641725180229,35.8637,139.55,139.47,0.07]
[1641725180829,35.8637,139.55,139.47,0.32]
[1641725181329,10.7591,139.52,139.47,0.07]
[1641725181528,22.89309658,139.56,139.47,13.8261]
[1641725181729,1.90538232,139.58,139.48,1.791]
[1641725181931,1.92493598,139.6,139.51,1.1915684]
[1641725182329,1.92493598,139.6,139.52,3.0]
[1641725182732,1.92493598,139.6,139.54,0.07]
[1641725182930,1.92493598,139.6,139.57,10.7483]
[1641725183130,25.62619459,139.64,139.57,10.7483]
[1641725183931,1.94776652,139.64,139.57,10.7483]
[1641725184132,1.94776652,139.64,139.57,10.8183]
[1641725184333,1.49257452,139.64,139.6,10.7458]
[1641725184535,1.96797762,139.66,139.58,0.25]
[1641725185132,1.96797762,139.66,139.59,31.55250674]
[1641725185333,1.96797762,139.66,139.61,10.7448]
[1641725185933,1.96180373,139.67,139.61,10.7448]
[1641725186532,1.79,139.69,139.61,10.7448]
[1641725186533,1.97342667,139.68,139.61,10.7448]
[1641725186734,1.97342667,139.68,139.62,0.07]
[1641725186936,2.667e-05,139.68,139.62,10.565]
[1641725187136,3.94685333,139.71,139.65,10.7391]
[1641725187334,1.99698165,139.71,139.66,30.87431858]
[1641725187558,1.99698165,139.71,139.66,34.12431858]
[1641725187758,1.99698165,139.71,139.66,34.05431858]
[1641725187958,2.00794881,139.72,139.67,0.07]
[1641725188159,2.00794881,139.72,139.67,35.8609]
[1641725188359,2.00794881,139.72,139.68,0.25]
[1641725188562,1.99992188,139.74,139.69,1.789]
[1641725189162,1.99992188,139.74,139.7,28.86548105]
[1641725189363,1.98179122,139.75,139.7,39.60328105]
[1641725190861,1.98179122,139.75,139.7,28.86548105]
[1641725192564,1.97374249,139.76,139.7,28.86548105]
[1641725193163,1.97374249,139.76,139.71,0.25]
[1641725193366,1.97374249,139.76,139.7,28.93548105]
[1641725193564,192.24568163,139.83,139.7,28.86548105]
[1641725193565,3.7713766,139.78,139.7,28.86548105]
[1641725193965,1.96150075,139.76,139.7,28.86548105]
[1641725194462,1.96162745,139.77,139.7,28.86548105]
[1641725194664,1.95727119,139.76,139.7,28.86548105]
[1641725195080,1.95888545,139.77,139.7,28.86548105]
[1641725195284,3.74206185,139.76,139.7,28.86548105]
[1641725195684,1.95306185,139.76,139.7,28.86548105]
[1641725196086,10.7395,139.77,139.7,28.93548105]
[1641725196495,12.70019308,139.77,139.7,28.93548105]
[1641725197095,12.70019308,139.77,139.7,0.07]
[1641725197096,1.789,139.76,139.7,0.07]
[1641725198705,1.789,139.76,139.7,27.8489366]
[1641725199309,1.96069308,139.77,139.7,27.8489366]
[1641725199709,3.74969308,139.77,139.7,27.8489366]
[1641725200613,14.48939308,139.77,139.7,27.8489366]
[1641725201211,3.74969308,139.77,139.7,27.8489366]
[1641725201411,3.74969308,139.77,139.69,48.193]
[1641725201412,1.96069308,139.77,139.69,48.193]
[1641725201812,1.789,139.76,139.69,48.193]
[1641725202224,1.789,139.76,139.7,0.07]
[1641725202418,1.96069308,139.77,139.7,0.07]
[1641725205623,5.6,139.99,139.7,0.07]
[1641725205824,36.04,139.97,139.71,77.0]
[1641725206023,1.65345313,139.82,139.71,77.0]
[1641725206222,35.8082,139.78,139.71,77.0]
[1641725206824,35.8082,139.78,139.72,30.95106742]
[1641725208124,10.7402,139.78,139.72,30.95106742]
[1641725208325,10.7402,139.78,139.72,31.02106742]
[1641725210528,10.7402,139.78,139.72,0.07]
[1641725213631,30.0,139.77,139.69,48.193]
[1641725213832,10.7464,139.73,139.63,1.789]
[1641725214032,10.7464,139.73,139.64,22.9903]
[1641725215236,10.7464,139.73,139.63,33.34893566]
[1641725216240,8.992906,139.72,139.63,33.34893566]
[1641725216436,10.747,139.68,139.63,33.34893566]
[1641725217662,10.747,139.68,139.63,31.55993566]
[1641725220365,10.747,139.68,139.62,141.5193]
[1641725221769,19.517,139.68,139.62,94.7]
[1641725222271,19.517,139.68,139.62,23.0054]
[1641725222568,21.17045313,139.68,139.57,94.7]
[1641725222769,10.7562,139.62,139.57,94.7]
[1641725222971,17.6612,139.62,139.57,94.7]
[1641725223570,1.65345313,139.61,139.57,94.7]
[1641725223769,6.905,139.62,139.57,94.7]
[1641725224169,6.27252644,139.63,139.57,94.7]
[1641725224370,35.858,139.6,139.57,94.7]
[1641725224571,9.001804,139.59,139.57,94.7]
[1641725225270,35.858,139.6,139.57,94.7]
[1641725225873,10.7562,139.58,139.57,94.7]
[1641725226471,16.82059993,139.58,139.57,94.7]
[1641725226673,1.65345313,139.65,139.58,3.62940007]
[1641725226872,178.87970838,139.77,139.58,3.62940007]
[1641725227073,15.8656,139.73,139.58,3.62940007]
[1641725227274,10.7517,139.65,139.58,3.62940007]
[1641725227675,25.61586577,139.65,139.58,3.62940007]
[1641725228676,10.7517,139.65,139.58,3.62940007]
[1641725232379,12.85767849,139.65,139.58,3.62940007]
[1641725233079,25.565543,139.64,139.57,94.7]
[1641725233480,10.7559,139.61,139.57,94.7]
[1641725233884,10.7559,139.61,139.56,2.01502667]
[1641725234079,17.6699,139.61,139.56,2.01502667]
[1641725234880,17.6699,139.61,139.56,0.58502667]
[1641725235280,17.6699,139.61,139.52,93.85502667]
[1641725235484,17.6699,139.61,139.51,95.8915684]
[1641725235680,10.7559,139.61,139.51,95.8915684]
[1641725238383,10.7559,139.61,139.51,120.6559684]
[1641725245288,10.7559,139.61,139.52,0.07]
[1641725249092,10.7559,139.61,139.52,0.32]
[1641725250594,10.7559,139.61,139.52,0.07]
[1641725250795,10.7559,139.61,139.52,10.825]
[1641725253022,10.7559,139.61,139.53,27.06260573]
[1641725253222,10.7559,139.61,139.54,0.07]
[1641725254826,10.7559,139.61,139.54,5.916]
[1641725255122,10.7512,139.62,139.54,6.166]
[1641725255823,35.8401,139.65,139.54,6.166]
[1641725256022,35.8401,139.65,139.56,22.83580086]
[1641725256222,35.8401,139.65,139.56,22.90580086]
[1641725256622,10.7503,139.63,139.56,22.90580086]
[1641725257223,186.66810406,139.68,139.56,22.90580086]
[1641725257423,186.66810406,139.68,139.57,24.3479]
[1641725257628,186.66810406,139.68,139.58,0.07]
[1641725257823,35.8332,139.67,139.58,0.07]
[1641725258827,10.7502,139.63,139.58,0.07]
[1641725261529,10.7502,139.63,139.54,23.8973]
[1641725262131,32.90430835,139.62,139.51,22.7745]
[1641725262328,10.7581,139.57,139.51,22.7745]
[1641725262529,10.7581,139.57,139.52,0.07]
[1641725262728,10.7581,139.57,139.51,21.4145]
[1641725271338,12.03905763,139.57,139.51,21.4145]
[1641725274343,10.7581,139.57,139.51,21.4145]
[1641725274544,10.7581,139.57,139.51,19.9845]
[1641725275444,24.64681083,139.57,139.51,19.9845]
[1641725282776,24.64681083,139.57,139.49,72.636]
[1641725283176,24.64681083,139.57,139.48,24.2524]
[1641725283376,38.0,139.56,139.46,23.37]
[1641725283676,10.7623,139.51,139.46,23.37]
[1641725284677,10.7623,139.51,139.43,81.3477421]
[1641725285481,10.7623,139.51,139.43,104.4943421]
[1641725285678,24.96556383,139.5,139.43,1.5500421]
[1641725285879,10.7685,139.45,139.41,96.492]
[1641725287883,10.7685,139.45,139.41,1.792]
[1641725288083,10.0,139.44,139.41,1.792]
[1641725288282,10.7686,139.42,139.4,16.14705948]
[1641725288483,10.7686,139.42,139.4,19.17925945]
[1641725289382,10.7686,139.42,139.4,16.14705948]
[1641725289882,10.7686,139.42,139.36,23.7733]
[1641725293087,10.7686,139.42,139.37,26.10360009]
[1641725294889,10.7686,139.42,139.36,23.7733]
[1641725303833,10.7686,139.42,139.35,117.2195]
[1641725304533,26.03805869,139.42,139.35,117.2195]
[1641725304734,10.7686,139.42,139.35,117.2195]
[1641725304932,10.0,139.41,139.35,117.2195]
[1641725305132,10.7726,139.38,139.35,94.7]
[1641725305734,10.7726,139.38,139.33,24.8574]
[1641725317047,10.7886,139.45,139.33,24.8574]
[1641725317248,10.0,139.43,139.33,24.8574]
[1641725317445,10.0,139.43,139.34,2.043]
[1641725318045,10.7685,139.4,139.34,25.93598832]
[1641725319048,10.0,139.43,139.35,3.0]
[1641725319448,10.0,139.43,139.36,0.25]
[1641725319648,10.6771,139.51,139.37,1.793]
[1641725319848,10.0,139.49,139.37,3.44645313]
[1641725320046,10.0,139.49,139.38,54.712]
[1641725320247,10.0,139.49,139.39,31.79024971]
[1641725320446,10.9401,139.52,139.4,23.2081]
[1641725320648,10.9401,139.52,139.4,26.2081]
[1641725320848,10.763,139.47,139.41,10.763]
[1641725321048,10.763,139.47,139.42,3.0]
[1641725321257,10.763,139.47,139.42,0.25]
[1641725321453,35.8764,139.5,139.4,77.6701]
[1641725321454,35.8764,139.5,139.4,26.2081]
[1641725321657,10.6661,139.53,139.42,1.65345313]
[1641725321857,10.7586,139.54,139.47,10.7583]
[1641725322054,184.3555758,139.56,139.47,10.7583]
[1641725322255,184.3555758,139.56,139.48,0.25]
[1641725322484,184.3555758,139.56,139.48,3.0]
[1641725322884,184.3555758,139.56,139.47,1.791]
[1641725322885,10.7593,139.54,139.47,12.5498]
[1641725323086,10.7593,139.54,139.46,22.7573]
[1641725323285,10.7593,139.54,139.46,25.7573]
[1641725323485,10.7593,139.54,139.46,22.7573]
[1641725323985,10.7593,139.54,139.47,0.25]
[1641725324185,10.7593,139.54,139.47,24.91177277]
[1641725324386,7.48296559,139.64,139.47,31.75477277]
[1641725324586,7.48296559,139.64,139.48,3.0]
[1641725324787,8.57,139.63,139.49,77.0]
[1641725324985,8.57,139.63,139.5,3.0]
[1641725325185,8.57,139.63,139.5,34.66912997]
[1641725325386,8.57,139.63,139.51,0.25]
[1641725325588,10.7566,139.57,139.51,0.25]
[1641725325987,26.47952204,139.64,139.51,0.25]
[1641725326187,15.423087,139.63,139.51,53.5263]
[1641725326490,15.88202204,139.64,139.51,53.5263]
[1641725326686,10.7535,139.61,139.54,10.7535]